bitfinex/quotes_BTCUSD_20250920
["timestamp","ask_amount","ask_price","bid_price","bid_amount"]
[1758355267775,1.19673575,116150.0,116140.0,0.09503444]
[1758355267978,1.19673575,116150.0,116140.0,0.09347567]
[1758355268203,1.19673544,116150.0,116140.0,0.09347567]
[1758355268597,1.19673544,116150.0,116140.0,0.11741567]
[1758355269635,0.55516652,116150.0,116140.0,0.11793528]
[1758355269855,0.94673544,116150.0,116140.0,0.11793528]
[1758355270070,1.11287307,116150.0,116140.0,0.11793528]
[1758355270354,0.82402878,116150.0,116140.0,0.11793528]
[1758355270627,0.50324432,116150.0,116140.0,0.11793528]
[1758355270825,0.82402878,116150.0,116140.0,0.11793528]
[1758355274896,0.8240248,116150.0,116140.0,0.11793528]
[1758355275498,0.8240248,116150.0,116140.0,0.11486528]
[1758355276483,0.8240248,116150.0,116140.0,0.09092528]
[1758355278028,1.16133926,116150.0,116140.0,0.08878528]
[1758355279489,1.18717975,116150.0,116140.0,0.08878528]
[1758355279699,1.17064975,116150.0,116140.0,0.08878528]
[1758355281624,0.84986529,116150.0,116140.0,0.08878528]
[1758355284406,0.86602113,116150.0,116140.0,0.08878528]
[1758355284832,1.18796559,116150.0,116140.0,0.08878528]
[1758355285036,1.20449559,116150.0,116140.0,0.08878528]
[1758355285828,1.20449798,116150.0,116140.0,0.08878528]
[1758355292572,1.20449798,116150.0,116140.0,0.08878528]
[1758355293692,0.56175959,116150.0,116140.0,0.08878528]
[1758355293915,1.20332851,116150.0,116140.0,0.08878528]
[1758355297364,1.18679851,116150.0,116140.0,0.08878528]
[1758355299587,1.20332851,116150.0,116140.0,0.08878528]
[1758355300126,1.20332762,116150.0,116140.0,0.08878528]
[1758355301251,1.17305562,116150.0,116140.0,0.08878528]
[1758355301681,1.17911125,116150.0,116140.0,0.08878528]
[1758355301890,1.17305562,116150.0,116140.0,0.08878528]
[1758355302116,1.19525959,116150.0,116140.0,0.08878528]
[1758355302332,1.18112999,116150.0,116140.0,0.08878528]
[1758355302530,1.19727874,116150.0,116140.0,0.08878528]
[1758355302736,1.17305562,116150.0,116140.0,0.08878528]
[1758355303606,1.18718615,116150.0,116140.0,0.08878528]
[1758355303829,1.20333533,116150.0,116140.0,0.08878528]
[1758355304051,1.18680533,116150.0,116140.0,0.08878528]
[1758355304703,0.54523641,116150.0,116140.0,0.09085528]
[1758355304885,1.16096484,116150.0,116140.0,0.09085528]
[1758355305699,1.16096484,116150.0,116140.0,0.11347528]
[1758355307547,1.15911484,116150.0,116140.0,0.11664528]
[1758355310788,0.83833038,116150.0,116140.0,0.11664528]
[1758355312480,0.83833038,116150.0,116140.0,0.09402528]
[1758355312684,0.83833038,116150.0,116140.0,0.11664528]
[1758355313063,0.05716672,116150.0,116140.0,0.7883661]
[1758355313270,0.01513053,116150.0,116140.0,0.63978759]
[1758355313448,0.00705594,116150.0,116140.0,0.31900313]
[1758355313646,0.3278404,116150.0,116140.0,0.31900313]
[1758355313964,0.00705594,116150.0,116140.0,0.31900313]
[1758355314572,0.00705594,116150.0,116140.0,0.31648752]
[1758355315012,0.00705594,116150.0,116140.0,0.32248752]
[1758355315193,0.00705594,116150.0,116140.0,0.32748752]
[1758355317163,0.001,116150.0,116140.0,0.32748752]
[1758355318684,0.001,116150.0,116140.0,0.59558752]
[1758355322184,0.001,116150.0,116140.0,0.91617595]
[1758355322403,0.001,116150.0,116140.0,0.91627595]
[1758355322648,0.001,116150.0,116140.0,0.59568752]
[1758355337236,0.00703963,116150.0,116140.0,0.59568752]
[1758355342107,0.00705039,116150.0,116140.0,0.59568752]
[1758355344680,0.00705039,116150.0,116140.0,0.59556752]
[1758355348192,0.00705039,116150.0,116140.0,0.59557752]
[1758355363455,0.50167995,116150.0,116140.0,0.36546967]
[1758355363646,0.00705039,116150.0,116140.0,0.56362562]
[1758355363856,0.00705039,116150.0,116140.0,0.56678562]
[1758355369829,0.00705991,116150.0,116140.0,0.56678562]
[1758355373705,0.00705983,116150.0,116140.0,0.56678562]
[1758355386519,0.00705983,116150.0,116140.0,0.88736284]
[1758355388388,0.00705983,116150.0,116140.0,0.56678562]
[1758355404413,0.00705983,116150.0,116140.0,0.56678562]
[1758355409935,0.32763705,116150.0,116140.0,0.56678562]
[1758355410772,0.32763705,116150.0,116140.0,0.56663063]
[1758355412991,0.32948705,116150.0,116140.0,0.53752063]
[1758355413229,0.8234154,116150.0,116140.0,0.36531468]
[1758355413463,0.8399454,116150.0,116140.0,0.36531468]
[1758355413662,0.8399454,116150.0,116140.0,0.09721468]
[1758355413799,0.51936818,116150.0,116140.0,0.09721468]
[1758355414016,0.60198734,116150.0,116140.0,0.09721468]
[1758355414220,0.51936818,116150.0,116140.0,0.09711468]
[1758355414626,0.51936612,116150.0,116140.0,0.26932063]
[1758355415200,0.51936612,116150.0,116140.0,0.09711468]
[1758355416094,0.51936612,116150.0,116140.0,0.26932063]
[1758355416742,0.51936612,116150.0,116140.0,0.09711468]
[1758355417957,0.83994334,116150.0,116140.0,0.09711468]
[1758355420306,1.17994334,116150.0,116140.0,0.09711468]
[1758355424320,1.24868301,116150.0,116140.0,0.09711468]
[1758355424537,1.17994334,116150.0,116140.0,0.09711468]
[1758355424742,0.85936612,116150.0,116140.0,0.09711468]
[1758355425853,0.5387889,116150.0,116140.0,0.09711468]
[1758355426010,0.85936612,116150.0,116140.0,0.09711468]
[1758355428284,0.85820612,116150.0,116140.0,0.09711468]
[1758355431383,0.85819996,116150.0,116140.0,0.09711468]
[1758355432363,1.213847,116150.0,116140.0,0.09711468]
[1758355433611,1.23973361,116150.0,116140.0,0.09711468]
[1758355435357,1.233682,116150.0,116140.0,0.09711468]
[1758355435565,1.23973389,116150.0,116140.0,0.09711468]
[1758355437798,0.91930946,116150.0,116140.0,0.09711468]
[1758355438407,0.91814946,116150.0,116140.0,0.09711468]
[1758355440323,1.00341913,116150.0,116140.0,0.09711468]
[1758355440520,1.00457913,116150.0,116140.0,0.09711468]
[1758355440951,1.02072216,116150.0,116140.0,0.09711468]
[1758355441534,0.93545249,116150.0,116140.0,0.09711468]
[1758355442377,0.93429249,116150.0,116140.0,0.09711468]
[1758355447934,0.91776249,116150.0,116140.0,0.09711468]
[1758355448597,0.93429249,116150.0,116140.0,0.09711468]
[1758355451893,0.91776249,116150.0,116140.0,0.09711468]
[1758355455127,0.93429249,116150.0,116140.0,0.09711468]
[1758355457888,0.93430251,116150.0,116140.0,0.09711468]
[1758355461136,0.91777251,116150.0,116140.0,0.09711468]
[1758355461345,1.02073218,116150.0,116140.0,0.012]
[1758355462178,1.02073218,116150.0,116140.0,0.005]
[1758355462816,0.93546251,116150.0,116140.0,0.01]
[1758355463247,0.93546251,116150.0,116140.0,0.005]
[1758355464120,0.93546251,116150.0,116140.0,0.006]
[1758355473294,0.93430251,116150.0,116140.0,0.006]
[1758355477962,0.93430251,116150.0,116140.0,0.00584499]
[1758355479642,0.93430251,116150.0,116140.0,0.00594052]
[1758355481544,0.93430609,116150.0,116140.0,0.00594052]
[1758355482626,0.97740586,116150.0,116140.0,0.00594052]
[1758355483046,0.93430609,116150.0,116140.0,0.00594052]
[1758355483722,0.93430609,116150.0,116140.0,0.00257602]
[1758355484164,0.93430609,116150.0,116140.0,0.00248049]
[1758355485285,0.93430609,116150.0,116140.0,0.00265346]
[1758355489523,0.93430831,116150.0,116140.0,0.00265346]
[1758355490135,1.00659079,116150.0,116140.0,0.00265346]
[1758355490359,1.3119508,116150.0,116140.0,0.00265346]
[1758355490570,1.3284808,116150.0,116140.0,0.00265346]
[1758355491525,1.3284808,116150.0,116140.0,0.00165346]
[1758355491884,1.3119508,116150.0,116140.0,0.00165346]
[1758355492082,1.3284808,116150.0,116140.0,0.00017297]
[1758355492287,1.3284808,116150.0,116140.0,0.00317297]
[1758355495782,1.3273208,116150.0,116140.0,0.00317297]
[1758355498077,1.30148031,116150.0,116140.0,0.00317297]
[1758355499897,1.30164585,116150.0,116140.0,0.00317297]
[1758355500079,1.62245863,116150.0,116140.0,0.00317297]
[1758355501707,1.60592863,116150.0,116140.0,0.00317297]
[1758355503992,1.60592617,116150.0,116140.0,0.00317297]
[1758355505393,1.60592617,116150.0,116140.0,0.00021503]
[1758355510627,1.62245617,116150.0,116140.0,0.00021503]
[1758355513170,1.62245831,116150.0,116140.0,0.00021503]
[1758355513757,1.6482988,116150.0,116140.0,0.00021503]
[1758355525561,1.62245831,116150.0,116140.0,0.00021503]
[1758355525762,1.60592831,116150.0,116140.0,0.00021503]
[1758355527003,0.17220595,116140.0,116130.0,0.02365431]
[1758355527204,1.16492404,116140.0,116130.0,0.10892398]
[1758355527477,1.16492404,116140.0,116130.0,0.11102398]
[1758355527660,1.19081491,116140.0,116130.0,0.11102398]
[1758355528219,1.19082204,116140.0,116130.0,0.11502398]
[1758355529009,1.19082204,116140.0,116130.0,0.11602398]
[1758355541395,1.19082204,116140.0,116130.0,0.11571401]
[1758355542046,1.19084027,116140.0,116130.0,0.11571401]
[1758355544940,1.19269027,116140.0,116130.0,0.11571401]
[1758355545157,1.27795994,116140.0,116130.0,0.11571401]
[1758355545601,1.19269027,116140.0,116130.0,0.11571401]
[1758355548662,1.19269027,116140.0,116130.0,0.09236967]
[1758355549300,0.23025193,116140.0,116130.0,0.09236967]
[1758355549487,1.19269027,116140.0,116130.0,0.09236967]
[1758355551929,1.19269027,116140.0,116130.0,0.11956967]
[1758355552568,1.25601868,116140.0,116130.0,0.11956967]
[1758355552818,1.19269027,116140.0,116130.0,0.11956967]
[1758355554772,1.19269027,116140.0,116130.0,0.09560967]
[1758355555657,1.19269006,116140.0,116130.0,0.11956967]
[1758355559996,0.87189652,116140.0,116130.0,0.11956967]
[1758355561692,0.87004652,116140.0,116130.0,0.11949967]
[1758355562474,0.87189652,116140.0,116130.0,0.11949967]
[1758355563119,0.87189652,116140.0,116130.0,0.09560967]
[1758355566765,0.23025172,116140.0,116130.0,0.09560967]
[1758355566967,0.87189652,116140.0,116130.0,0.09560967]
[1758355567504,0.87189652,116140.0,116130.0,0.11949967]
[1758355569430,0.87189652,116140.0,116130.0,0.09236967]
[1758355569826,0.91360292,116140.0,116130.0,0.09236967]
[1758355570030,0.87189652,116140.0,116130.0,0.09236967]
[1758355570193,0.84966667,116140.0,116130.0,0.09236967]
[1758355570394,0.87189631,116140.0,116130.0,0.09236967]
[1758355574222,0.8557293,116140.0,116130.0,0.09236967]
[1758355574413,0.8718966,116140.0,116130.0,0.09236967]
[1758355576608,0.91186298,116140.0,116130.0,0.09236967]
[1758355576983,0.8718966,116140.0,116130.0,0.09236967]
[1758355578370,0.87190569,116140.0,116130.0,0.09236967]
[1758355586665,0.87190569,116140.0,116130.0,0.11556967]
[1758355586925,0.87190569,116140.0,116130.0,0.11869967]
[1758355590226,0.87189711,116140.0,116130.0,0.11869967]
[1758355606121,0.84967251,116140.0,116130.0,0.11869967]
[1758355606318,0.8718909,116140.0,116130.0,0.11869967]
[1758355614006,0.8718909,116140.0,116130.0,0.09549967]
[1758355614372,0.8718909,116140.0,116130.0,0.09236967]
[1758355621913,1.19269203,116140.0,116130.0,0.09236967]
[1758355622704,1.19269203,116140.0,116130.0,0.09026967]
[1758355622935,1.21382203,116140.0,116130.0,0.09026967]
[1758355623165,1.23966252,116140.0,116130.0,0.09026967]
[1758355628593,1.23966806,116140.0,116130.0,0.09026967]
[1758355631456,1.23966806,116140.0,116130.0,0.08990793]
[1758355639475,1.21853806,116140.0,116130.0,0.08990793]
[1758355639686,2.54327399,116140.0,116130.0,0.005]
[1758355640106,0.17223561,116120.0,116110.0,0.00313]
[1758355640319,1.19082685,116120.0,116110.0,0.08526967]
[1758355640537,1.21379476,116120.0,116110.0,0.08526967]
[1758355640748,1.23969008,116120.0,116110.0,0.08526967]
[1758355641884,1.23969008,116120.0,116110.0,0.08626967]
[1758355643070,1.23969008,116120.0,116110.0,0.08926967]
[1758355644517,1.23967353,116120.0,116110.0,0.08926967]
[1758355648516,1.23964246,116120.0,116110.0,0.08926967]
[1758355651987,1.21851246,116120.0,116110.0,0.08926967]
[1758355653230,1.23964246,116120.0,116110.0,0.08926967]
[1758355656443,1.23963644,116120.0,116110.0,0.08926967]
[1758355658720,1.21850644,116120.0,116110.0,0.004]
[1758355658921,1.23963644,116120.0,116110.0,0.004]
[1758355659345,1.58079644,116120.0,116110.0,0.004]
[1758355660239,1.58079996,116120.0,116110.0,0.004]
[1758355661981,0.61719403,116120.0,116110.0,0.004]
[1758355662162,1.57963996,116120.0,116110.0,0.004]
[1758355662631,1.55850996,116120.0,116110.0,0.004]
[1758355662842,1.58079996,116120.0,116110.0,0.004]
[1758355663644,1.57963996,116120.0,116110.0,0.004]
[1758355670010,0.17228012,116090.0,116080.0,0.06821573]
[1758355670226,0.17228012,116090.0,116080.0,0.1555454]
[1758355670227,0.84415335,116090.0,116080.0,0.1555454]
[1758355670440,0.86999384,116090.0,116080.0,0.1555454]
[1758355670652,0.86999384,116090.0,116080.0,0.08732967]
[1758355670869,0.89589229,116090.0,116080.0,0.11450967]
[1758355671252,1.21976318,116090.0,116080.0,0.02970904]
[1758355671384,1.23591422,116090.0,116080.0,0.11497871]
[1758355671921,1.23591422,116090.0,116080.0,0.12697871]
[1758355672165,1.23591422,116090.0,116080.0,0.13397871]
[1758355673899,1.24449535,116090.0,116080.0,0.13397871]
[1758355677326,1.24449535,116090.0,116080.0,0.10973871]
[1758355677530,1.24449535,116090.0,116080.0,0.13412871]
[1758355680014,1.24449535,116090.0,116080.0,0.10973871]
[1758355680249,1.24449535,116090.0,116080.0,0.13412871]
[1758355682520,1.24634535,116090.0,116080.0,0.13412871]
[1758355682721,1.2463479,116090.0,116080.0,0.10679871]
[1758355683655,1.2463479,116090.0,116080.0,0.10473871]
[1758355683941,0.94695196,116090.0,116080.0,0.10473871]
[1758355687901,0.92582196,116090.0,116080.0,0.10473871]
[1758355688091,0.92582196,116090.0,116080.0,0.10677871]
[1758355688793,0.92582196,116090.0,116080.0,0.13409871]
[1758355690151,0.92582196,116090.0,116080.0,0.10677871]
[1758355690794,0.92582196,116090.0,116080.0,0.13409871]
[1758355695545,0.94695196,116090.0,116080.0,0.10473871]
[1758355695745,0.92582196,116090.0,116080.0,0.10473871]
[1758355695949,1.26921664,116090.0,116080.0,0.01946904]
[1758355696128,1.26921664,116090.0,116080.0,0.00746904]
[1758355696348,1.26805664,116090.0,116080.0,0.00746904]
[1758355696810,0.94695196,116090.0,116080.0,0.00746904]
[1758355697021,1.26921664,116090.0,116080.0,0.00046904]
[1758355697388,0.94811196,116090.0,116080.0,0.00546904]
[1758355697557,0.94811196,116090.0,116080.0,0.01246904]
[1758355697779,0.94811196,116090.0,116080.0,0.00746904]
[1758355697975,1.26921664,116090.0,116080.0,0.00746904]
[1758355698185,1.26921664,116090.0,116080.0,0.00046904]
[1758355698415,1.26921362,116090.0,116080.0,0.00446904]
[1758355698785,0.94810894,116090.0,116080.0,0.00546904]
[1758355699745,1.26921362,116090.0,116080.0,0.00546904]
[1758355701688,1.26805362,116090.0,116080.0,0.00546904]
[1758355703015,1.26805926,116090.0,116080.0,0.00546904]
[1758355703911,1.26921926,116090.0,116080.0,0.00546904]
[1758355705050,1.26921926,116090.0,116080.0,0.00146904]
[1758355705250,1.26921926,116090.0,116080.0,0.00346904]
[1758355705430,1.26921926,116090.0,116080.0,0.00246904]
[1758355705830,1.27121926,116090.0,116080.0,0.00246904]
[1758355710337,1.27005926,116090.0,116080.0,0.00246904]
[1758355712717,1.35532893,116090.0,116080.0,0.00246904]
[1758355714272,1.35534374,116090.0,116080.0,0.00246904]
[1758355716072,1.35650374,116090.0,116080.0,0.00246904]
[1758355716279,1.35534374,116090.0,116080.0,0.00246904]
[1758355719079,1.03423906,116090.0,116080.0,0.00246904]
[1758355719275,0.94896939,116090.0,116080.0,0.00246904]
[1758355728625,0.94038826,116090.0,116080.0,0.00246904]
[1758355729752,0.91925826,116090.0,116080.0,0.00447904]
[1758355729951,0.91925826,116090.0,116080.0,0.03026904]
[1758355730155,0.91926394,116090.0,116080.0,0.03026904]
[1758355732171,0.99319175,116090.0,116080.0,0.03026904]
[1758355733236,0.99319175,116090.0,116080.0,0.02725904]
[1758355733643,0.99319175,116090.0,116080.0,0.00447904]
[1758355735042,1.01432175,116090.0,116080.0,0.00246904]
[1758355736354,0.99319175,116090.0,116080.0,0.00246904]
[1758355736927,0.91926394,116090.0,116080.0,0.00246904]
[1758355737945,0.94039394,116090.0,116080.0,0.00246904]
[1758355743908,1.2615728,116090.0,116080.0,0.00246904]
[1758355754955,1.58271457,116090.0,116080.0,0.00246904]
[1758355756668,1.58272642,116090.0,116080.0,0.00246904]
[1758355759072,1.66799609,116090.0,116080.0,0.00246904]
[1758355759498,1.58272642,116090.0,116080.0,0.00246904]
[1758355759703,1.26158465,116090.0,116080.0,0.00246904]
[1758355760471,1.26160875,116090.0,116080.0,0.00246904]
[1758355768607,1.26160875,116090.0,116080.0,0.00457904]
[1758355768608,1.24047875,116090.0,116080.0,0.00457904]
[1758355770317,0.59819521,116090.0,116080.0,0.00457904]
[1758355770525,1.24047875,116090.0,116080.0,0.00457904]
[1758355770741,1.2640052,116090.0,116080.0,0.00457904]
[1758355771338,1.24047875,116090.0,116080.0,0.00457904]
[1758355771556,1.26160875,116090.0,116080.0,0.00457904]
[1758355776363,1.26160967,116090.0,116080.0,0.00457904]
[1758355778458,0.17229496,116080.0,116070.0,0.02278]
[1758355778680,0.51230981,116070.0,116060.0,0.02549]
[1758355778899,1.21076091,116070.0,116060.0,0.11301041]
[1758355779324,1.23666618,116070.0,116060.0,0.11301041]
[1758355780419,1.23666594,116070.0,116060.0,0.09051041]
[1758355780645,1.23666594,116070.0,116060.0,0.12001041]
[1758355781073,1.23851594,116070.0,116060.0,0.09241041]
[1758355781488,1.23851594,116070.0,116060.0,0.09252041]
[1758355781710,1.23851594,116070.0,116060.0,0.09552041]
[1758355781850,1.23666594,116070.0,116060.0,0.12101041]
[1758355782056,1.23666594,116070.0,116060.0,0.11601041]
[1758355782265,1.23666594,116070.0,116060.0,0.11901041]
[1758355785243,1.23664391,116070.0,116060.0,0.11901041]
[1758355787343,1.25962391,116070.0,116060.0,0.00614074]
[1758355788360,1.23849391,116070.0,116060.0,0.00614074]
[1758355789970,1.25962391,116070.0,116060.0,0.00614074]
[1758355791615,1.23849391,116070.0,116060.0,0.03374074]
[1758355792210,1.23846955,116070.0,116060.0,0.03374074]
[1758355793084,1.23846955,116070.0,116060.0,0.00825074]
[1758355795149,1.25959955,116070.0,116060.0,0.00825074]
[1758355796638,1.25959955,116070.0,116060.0,0.00614074]
[1758355796848,1.23846955,116070.0,116060.0,0.00614074]
[1758355797064,1.26075955,116070.0,116060.0,0.00614074]
[1758355797455,1.25959955,116070.0,116060.0,0.00614074]
[1758355797866,1.58074132,116070.0,116060.0,0.00614074]
[1758355798074,1.58190132,116070.0,116060.0,0.00014074]
[1758355798285,1.58190132,116070.0,116060.0,0.00214074]
[1758355799297,1.58074132,116070.0,116060.0,0.00214074]
[1758355800498,1.58074099,116070.0,116060.0,0.00214074]
[1758355800891,1.25959922,116070.0,116060.0,0.00214074]
[1758355802823,1.25959787,116070.0,116060.0,0.00214074]
[1758355803877,1.25985609,116070.0,116060.0,0.00214074]
[1758355806535,1.23872609,116070.0,116060.0,0.00214074]
[1758355806736,1.25985609,116070.0,116060.0,0.00214074]
[1758355807252,1.29966293,116070.0,116060.0,0.00214074]
[1758355810985,1.29966815,116070.0,116060.0,0.00214074]
[1758355812211,1.27853815,116070.0,116060.0,0.00214074]
[1758355812428,1.29966815,116070.0,116060.0,0.00214074]
[1758355823609,1.25986131,116070.0,116060.0,0.00214074]
[1758355826688,0.83359553,116060.0,116050.0,0.00299]
[1758355826943,0.88972,116060.0,116050.0,0.02678687]
[1758355827145,0.88972,116060.0,116050.0,0.02892687]
[1758355827481,0.91563011,116060.0,116050.0,0.02892687]
[1758355827881,0.91563011,116060.0,116050.0,0.03192687]
[1758355828823,0.91563011,116060.0,116050.0,0.03492687]
[1758355830491,1.23875099,116060.0,116050.0,0.01117687]
[1758355830667,0.91748011,116060.0,116050.0,0.00818687]
[1758355830839,0.91748011,116060.0,116050.0,0.00518687]
[1758355831052,0.91748011,116060.0,116050.0,0.00618687]
[1758355831556,0.91748011,116060.0,116050.0,0.00318687]
[1758355834121,1.23875099,116060.0,116050.0,0.00318687]
[1758355834332,1.32402066,116060.0,116050.0,0.00104687]
[1758355834576,1.02387978,116060.0,116050.0,0.00104687]
[1758355835417,0.93861011,116060.0,116050.0,0.00104687]
[1758355840754,1.25988099,116060.0,116050.0,0.00104687]
[1758355842090,1.23875099,116060.0,116050.0,0.00104687]
[1758355842324,1.25988099,116060.0,116050.0,0.00104687]
[1758355842547,1.25990876,116060.0,116050.0,0.00104687]
[1758355843097,1.34517843,116060.0,116050.0,0.00104687]
[1758355843290,1.02390755,116060.0,116050.0,0.00104687]
[1758355844298,1.34517843,116060.0,116050.0,0.00104687]
[1758355846041,1.33911608,116060.0,116050.0,0.00104687]
[1758355846246,1.34517837,116060.0,116050.0,0.00104687]
[1758355846414,1.345178,116060.0,116050.0,0.00104687]
[1758355846688,1.25990833,116060.0,116050.0,0.00104687]
[1758355863250,0.5123395,116050.0,116040.0,0.02555]
[1758355863473,1.21107989,116050.0,116040.0,0.02555]
[1758355863672,1.21107989,116050.0,116040.0,0.0276]
[1758355863881,1.21122921,116050.0,116040.0,0.0276]
[1758355864110,1.23677921,116050.0,116040.0,0.0276]
[1758355864760,1.23677921,116050.0,116040.0,0.0286]
[1758355864966,1.23678212,116050.0,116040.0,0.0286]
[1758355872896,1.23679067,116050.0,116040.0,0.0286]
[1758355873415,1.20679067,116050.0,116040.0,0.0286]
[1758355881162,1.20864067,116050.0,116040.0,0.0286]
[1758355885805,1.20864067,116050.0,116040.0,0.00598]
[1758355886930,1.20864067,116050.0,116040.0,0.00305]
[1758355894368,1.23879257,116050.0,116040.0,0.001]
[1758355894614,1.26108257,116050.0,116040.0,0.001]
[1758355894832,1.25992257,116050.0,116040.0,0.001]
[1758355908554,1.25993051,116050.0,116040.0,0.001]
[1758355916849,1.23880051,116050.0,116040.0,0.001]
[1758355920885,1.23880051,116050.0,116040.0,0.00303]
[1758355921618,1.23695051,116050.0,116040.0,0.0292]
[1758355925853,1.23694299,116050.0,116040.0,0.0292]
[1758355931900,1.23879299,116050.0,116040.0,0.0292]
[1758355939872,1.23879299,116050.0,116040.0,0.00303]
[1758355944424,1.23879264,116050.0,116040.0,0.00303]
[1758355945176,1.25992264,116050.0,116040.0,0.001]
[1758355949573,1.23408215,116050.0,116040.0,0.001]
[1758355949776,1.25992264,116050.0,116040.0,0.001]
[1758355949993,1.23408215,116050.0,116040.0,0.001]
[1758355960230,1.25990089,116050.0,116040.0,0.001]
[1758355970192,0.61721733,116050.0,116040.0,0.001]
[1758355970398,1.25990089,116050.0,116040.0,0.001]
[1758355974769,1.25990802,116050.0,116040.0,0.001]
[1758355974971,1.23877802,116050.0,116040.0,0.001]
[1758355975203,1.23877802,116050.0,116040.0,0.00303]
[1758355978768,0.91743624,116050.0,116040.0,0.03025]
[1758355979389,1.23877802,116050.0,116040.0,0.03025]
[1758355983159,1.23877802,116050.0,116040.0,0.02722]
[1758355985772,1.23877802,116050.0,116040.0,0.00303]
[1758355986980,1.25990802,116050.0,116040.0,0.001]
[1758355987948,1.25992106,116050.0,116040.0,0.001]
[1758355993355,1.25992096,116050.0,116040.0,0.001]
[1758355997292,1.25992096,116050.0,116040.0,0.00064442]
[1758356001114,1.25992087,116050.0,116040.0,0.00064442]
[1758356003036,0.61722427,116050.0,116040.0,0.00064442]
[1758356003244,1.25992087,116050.0,116040.0,0.00064442]
[1758356017003,1.25992084,116050.0,116040.0,0.00064442]
[1758356026036,1.23879084,116050.0,116040.0,0.00064442]
[1758356041126,1.23879084,116050.0,116040.0,0.00020909]
[1758356042769,1.23879084,116050.0,116040.0,0.00232909]
[1758356043570,1.2387909,116050.0,116040.0,0.00232909]
[1758356047274,0.5960943,116050.0,116040.0,0.00232909]
[1758356047487,1.2387909,116050.0,116040.0,0.00232909]
[1758356047942,0.91742088,116050.0,116040.0,0.00232909]
[1758356049192,0.91742088,116050.0,116040.0,0.11356876]
[1758356049193,0.53827366,116050.0,116040.0,0.11356876]
[1758356049404,0.53827366,116050.0,116040.0,0.28592312]
[1758356049405,0.19827366,116050.0,116040.0,0.28592312]
[1758356049611,0.21209361,116050.0,116040.0,0.28592312]
[1758356050450,0.21209361,116050.0,116040.0,0.28571403]
[1758356050799,0.21209361,116050.0,116040.0,0.28771403]
[1758356051014,0.21209361,116050.0,116040.0,0.29071403]
[1758356051410,0.20399262,116050.0,116040.0,0.28871403]
[1758356051648,0.5253192,116050.0,116040.0,0.12135967]
[1758356051781,0.53339427,116050.0,116040.0,0.12135967]
[1758356052275,0.53339427,116050.0,116040.0,0.11835967]
[1758356052483,0.53339427,116050.0,116040.0,0.12845967]
[1758356053181,0.21206769,116050.0,116040.0,0.12845967]
[1758356053387,0.53339427,116050.0,116040.0,0.12845967]
[1758356055412,0.5253192,116050.0,116040.0,0.12845967]
[1758356057370,0.52531441,116050.0,116040.0,0.12845967]
[1758356072360,0.53338585,116050.0,116040.0,0.12845967]
[1758356074040,0.53338585,116050.0,116040.0,0.12876102]
[1758356075425,0.53338834,116050.0,116040.0,0.12876102]
[1758356077627,0.55636834,116050.0,116040.0,0.10067102]
[1758356078471,0.53523834,116050.0,116040.0,0.10067102]
[1758356078646,0.53523834,116050.0,116040.0,0.10281102]
[1758356078844,0.53523834,116050.0,116040.0,0.13099102]
[1758356079051,0.53338834,116050.0,116040.0,0.13099102]
[1758356081201,0.54956301,116050.0,116040.0,0.13099102]
[1758356082231,0.55141301,116050.0,116040.0,0.13099102]
[1758356086207,0.54333908,116050.0,116040.0,0.13099102]
[1758356086792,0.5211129,116050.0,116040.0,0.13099102]
[1758356087563,0.55144301,116050.0,116040.0,0.13099102]
[1758356088168,0.54335498,116050.0,116040.0,0.13099102]
[1758356088594,0.52717892,116050.0,116040.0,0.13099102]
[1758356089469,0.5211129,116050.0,116040.0,0.13099102]
[1758356091024,0.52920089,116050.0,116040.0,0.13099102]
[1758356092175,0.5211129,116050.0,116040.0,0.13099102]
[1758356093479,0.55144271,116050.0,116040.0,0.13099102]
[1758356095496,0.52589271,116050.0,116040.0,0.13099102]
[1758356096749,0.20456613,116050.0,116040.0,0.13099102]
[1758356096906,0.52589271,116050.0,116040.0,0.13099102]
[1758356099189,0.52589271,116050.0,116040.0,0.10281102]
[1758356101397,0.52589291,116050.0,116040.0,0.12928102]
[1758356104732,0.52404291,116050.0,116040.0,0.12928102]
[1758356108300,0.20271633,116050.0,116040.0,0.12928102]
[1758356108544,0.52404291,116050.0,116040.0,0.12928102]
[1758356109239,0.20271633,116050.0,116040.0,0.12928102]
[1758356109725,0.52404291,116050.0,116040.0,0.12928102]
[1758356109959,0.52393546,116050.0,116040.0,0.12928102]
[1758356111386,0.50775945,116050.0,116040.0,0.12928102]
[1758356113406,0.18654032,116050.0,116040.0,0.12928102]
[1758356113657,0.50775945,116050.0,116040.0,0.12928102]
[1758356116221,0.18654032,116050.0,116040.0,0.12928102]
[1758356116360,0.50775945,116050.0,116040.0,0.12928102]
[1758356116916,0.50776046,116050.0,116040.0,0.12928102]
[1758356120878,0.50776043,116050.0,116040.0,0.12928102]
[1758356122985,0.53366776,116050.0,116040.0,0.12928102]
[1758356123189,0.21244863,116050.0,116040.0,0.12928102]
[1758356123397,0.53366776,116050.0,116040.0,0.12928102]
[1758356128891,0.5336678,116050.0,116040.0,0.12928102]
[1758356132004,0.21244867,116050.0,116040.0,0.12928102]
[1758356132212,0.5336678,116050.0,116040.0,0.12928102]
[1758356145255,0.5355178,116050.0,116040.0,0.12928102]
[1758356146779,0.53551702,116050.0,116040.0,0.12928102]
[1758356147558,0.5355156,116050.0,116040.0,0.12928102]
[1758356148711,0.5355156,116050.0,116040.0,0.12610102]
[1758356149212,0.5355156,116050.0,116040.0,0.10281102]
[1758356150251,0.5355156,116050.0,116040.0,0.27516538]
[1758356151664,0.5355156,116050.0,116040.0,0.30205538]
[1758356153440,0.5336656,116050.0,116040.0,0.30205538]
[1758356153993,0.53366396,116050.0,116040.0,0.30205538]
[1758356158057,0.53551396,116050.0,116040.0,0.30205538]
[1758356158676,0.53366396,116050.0,116040.0,0.30190538]
[1758356160596,0.53366321,116050.0,116040.0,0.30190538]
[1758356162327,0.21244408,116050.0,116040.0,0.30190538]
[1758356162708,0.53366321,116050.0,116040.0,0.30190538]
[1758356163866,0.21244408,116050.0,116040.0,0.30190538]
[1758356164091,0.53366321,116050.0,116040.0,0.30190538]
[1758356164306,0.21244408,116050.0,116040.0,0.30190538]
[1758356164476,0.53366321,116050.0,116040.0,0.30190538]
[1758356166427,0.21244408,116050.0,116040.0,0.30190538]
[1758356166563,0.53366321,116050.0,116040.0,0.30190538]
[1758356167632,0.53366321,116050.0,116040.0,0.27825538]
[1758356167842,0.53366321,116050.0,116040.0,0.30231538]
[1758356169197,0.52557607,116050.0,116040.0,0.30231538]
[1758356169447,0.53366082,116050.0,116040.0,0.30231538]
[1758356169873,0.21244169,116050.0,116040.0,0.30231538]
[1758356170938,0.53364827,116050.0,116040.0,0.30231538]
[1758356185482,0.52758498,116050.0,116040.0,0.30231538]
[1758356185716,0.53365129,116050.0,116040.0,0.30231538]
[1758356193194,0.21244471,116050.0,116040.0,0.30231538]
[1758356193394,0.53365129,116050.0,116040.0,0.30231538]
[1758356193604,0.21244471,116050.0,116040.0,0.30231538]